Cogmind - Beta 13 @@@ ROGUE MODE // 2024.04.18 @ 07:50:35 Player: sick0r Result: Destroyed by Y-45 Defender with Beam Rifle Performance ------------- Evolutions (2) 1000 Regions Visited (4) 800 Robots Destroyed (113) 565 Value Destroyed (2968) 2968 Prototype IDs (4) 80 Alien Tech Used (0) 0 Bonus (478) 478 TOTAL SCORE: 5891 Bonus ------- High Alert Combat Kills 408 Follower Combat Kills 70 Cogmind --------- Core Integrity 0/550 Matter 300/300 Energy 152/160 System Corruption 0% Temperature Cool (13) Movement Walking (193) Ox1 Location -8/Materials Parts ------- > --- POWER (2) -------- Light Nuclear Core > --- PROPULSION (3) --- Carbon-fiber Leg Carbon-fiber Leg Titanium Leg > --- UTILITY (4) ------ Huge Storage Unit Improved Targeting Computer Hacking Suite > --- WEAPON (2) ------- Katana Scythe > --- INVENTORY (25) --- Light Nuclear Core Armored Treads Carbon-fiber Leg Carbon-fiber Leg Carbon-fiber Leg Advanced Heat Sink Improved Cooling System High-capacity Battery (250) Compact Matter Pod (150) Melee Analysis Suite Matter Filter Particle Charger Improved Propulsion Shielding Utility Shielding Hardened Medium Armor Plating Improved Light Armor Plating Hardlight Generator Remote Shield Hacking Suite Precision Shock Rifle Precision Shock Rifle Precision Shock Rifle Minigun Flak Cannon Mini Grenade Launcher Peak State ------------ > --- POWER ------------ Light Deuterium Engine Light Nuclear Core > --- PROPULSION ------- Carbon-fiber Leg Titanium Leg Titanium Leg > --- UTILITY ---------- Huge Storage Unit Improved Targeting Computer Melee Analysis Suite Hacking Suite > --- WEAPON ----------- Precision Shock Rifle Scythe > --- INVENTORY -------- Light Nuclear Core Light Nuclear Core Armored Treads Carbon-fiber Leg Improved Heat Sink Advanced Heat Sink Improved Cooling System High-capacity Battery Compact Matter Pod Matter Filter Particle Charger Improved Propulsion Shielding Utility Shielding Hardened Medium Armor Plating Improved Light Armor Plating Hardlight Generator Hardlight Generator Remote Shield Hacking Suite Precision Shock Rifle Precision Shock Rifle Minigun Flak Cannon Mini Grenade Launcher Katana [Rating: 40] Favorites ----------- Power Ion Engine Engine Ion Engine Power Core Light Nuclear Core Propulsion Light Treads Treads Light Treads Leg Titanium Leg Wheel Compact Wheel Utility Huge Storage Unit Device Hardlight Generator Storage Huge Storage Unit Processor Improved Targeting Computer Hackware Hacking Suite Protection Medium Armor Plating Weapon Minigun Energy Gun Shock Rifle Ballistic Gun Minigun Ballistic Cannon Flak Cannon Launcher Mini Grenade Launcher Slashing Weapon Scythe Special Melee Weapon Improved Datajack Build | -11 -10 -9 -9 -8 ------- Run | Yrd Mat Mat Min Mat Slots Evolved 4 | . . 2 . 2 Power 1 | . . . . 1 Propulsion 1 | . . 1 . . Utility 2 | . . 1 . 1 Weapon . | . . . . . Parts Attached 108 | 7 14 23 . 64 Power 17 | 1 1 4 . 11 Engine 15 | 1 1 4 . 9 Core 2 | . . . . 2 Reactor . | . . . . . Propulsion 34 | 3 6 6 . 19 Treads 6 | 1 2 2 . 1 Leg 15 | 2 . . . 13 Wheel 13 | . 4 4 . 5 Hover . | . . . . . Flight . | . . . . . Utility 19 | 1 4 2 . 12 Device 2 | . . . . 2 Storage 3 | 1 1 . . 1 Processor 2 | . . 1 . 1 Hackware 1 | . 1 . . . Protection 11 | . 2 1 . 8 Artifact . | . . . . . Weapon 38 | 2 3 11 . 22 Energy Gun 7 | . . . . 7 Energy Cannon . | . . . . . Ballistic Gun 17 | 2 2 6 . 7 Ballistic Cannon 1 | . . . . 1 Launcher 7 | . 1 3 . 3 Special Weapon . | . . . . . Impact Weapon . | . . . . . Slashing Weapon 5 | . . 1 . 4 Piercing Weapon . | . . . . . Special Melee Weapon 1 | . . 1 . . Unidentified Prototypes 4 | . . . . 4 Parts Lost 33 | . . 7 . 26 Power 9 | . . 1 . 8 Propulsion 13 | . . 5 . 8 Utility 7 | . . . . 7 Weapon 4 | . . 1 . 3 Highest Loss Streak 6 | . . 6 . 5 To Critical Strikes . | . . . . . Average Slot Usage (%) 93 | . 95 95 88 95 Engine 13 | . 14 11 11 14 Treads 7 | . . 5 22 6 Leg 9 | . 6 . . 16 Wheel 7 | . 20 24 . 2 Storage 10 | . 14 11 11 9 Processor 8 | . . 6 11 10 Hackware 8 | . 5 11 11 9 Protection 4 | . 4 4 . 6 Energy Gun 1 | . . . . 2 Ballistic Gun 15 | . 27 20 22 8 Ballistic Cannon 1 | . . . . 3 Slashing Weapon 1 | . . . . 2 Naked Turns . | . . . . . Heaviest Build 116 | 13 95 96 90 116 Greatest Support 60 | 20 32 48 40 60 Greatest Overweight (x) 32 | 3 5 3 2 32 Average Overweight (x) 1 | . 1 1 2 2 Largest Inventory Capacity 25 | 8 25 25 25 25 Average Capacity 24 | 7 21 25 25 25 Most Carried 25 | 8 25 25 25 25 Average Carried 21 | 6 14 23 23 23 Final Capacity 25 | 8 25 25 25 25 Final Carried 25 | 6 25 20 25 25 Class Distribution -------------------- 87% | Mutant 10% | Scavenger-Mutant Dominant Class ---------------- Mutant | -10/Materials Mutant | -9/Materials Mutant | -9/Mines Mutant | -8/Materials Resources | -11 -10 -9 -9 -8 ----------- Run | Yrd Mat Mat Min Mat Matter Collected 3228 | 270 513 636 96 1713 Remotely . | . . . . . Salvage Created 3637 | . 749 795 38 2055 Parts 239 | . 47 68 6 118 Haulers Intercepted . | . . . . . Recyclers Shooed 8 | . 3 . . 5 Parts Field Recycled . | . . . . . Retrieved Matter . | . . . . . Parts Self-Destructed . | . . . . . Prevented . | . . . . . Kills | -11 -10 -9 -9 -8 ------- Run | Yrd Mat Mat Min Mat Combat Hostiles Destroyed 80 | . 12 21 . 47 Melee 11 | . . . . 11 Guns 55 | . 12 19 . 24 Cannons 9 | . . . . 9 AOE 5 | . . 2 . 3 Classes Destroyed 14 | . 5 3 1 5 Worker 6 | . . 4 . 2 Builder 3 | . . . 1 2 Tunneler 2 | . . 1 1 . Recycler 9 | . 3 . . 6 Operator 5 | . 2 1 . 2 Watcher 8 | . 3 2 . 3 Swarmer 27 | . 3 8 . 16 Grunt 36 | . 9 7 . 20 Duelist 1 | . . . . 1 Protector 1 | . . . . 1 Sentry 12 | . . 6 . 6 Specialist 1 | . . . . 1 Hunter 1 | . . . . 1 Heavy 1 | . . . . 1 Best Kill Streak 7 | . 5 7 1 5 Combat Bots Only 5 | . 4 5 . 4 Max Kills in Single Turn 4 | . 1 4 1 3 Gunslinging 1 | . . . . 1 Exploded 2 | . . 2 . 2 Melee 1 | . . . . 1 Uniques/NPCs Destroyed . | . . . . . Combat | -11 -10 -9 -9 -8 -------- Run | Yrd Mat Mat Min Mat Hostile Shots Fired 604 | . 58 164 . 382 Missed 158 | . 12 46 . 100 Damage Taken 5685 | . 511 1342 . 3832 Core 1038 | . 104 374 . 560 Absorbed by Shields 137 | . . . . 137 Redirected to Shielding 51 | . . . . 51 Regen/Repaired (Parts) 99 | . . 99 . . Core Remaining (%) 54 | 100 58 . 6 . Volleys Fired 287 | . 57 70 6 154 Largest 2 | . 2 2 2 2 Hottest 99 | . 40 55 45 99 Shots Fired 555 | . 114 127 12 302 Gun 490 | . 113 126 12 239 Cannon 60 | . . . . 60 Launcher 5 | . 1 1 . 3 Special . | . . . . . Kinetic 532 | . 113 126 12 281 Thermal . | . . . . . Explosive 5 | . 1 1 . 3 Electromagnetic 18 | . . . . 18 Robot Hit Streak 13 | . 8 13 4 13 Robot Miss Streak 7 | . 4 4 5 7 Penetration Max . | . . . . . Secondary Targets 9 | . 2 2 . 5 Max Gunslinging Chain 1 | . 1 1 . 1 Shots Hit Robots 411 | . 68 85 5 253 Core Hits 216 | . 37 39 2 138 Critical Kills 2 | . 1 . . 1 Critical Parts Destroyed 1 | . . . . 1 Critical Strikes 13 | . 1 1 . 11 Destroy 3 | . 1 . . 2 Corrupt 1 | . . . . 1 Sever 9 | . . 1 . 8 Melee Attacks 51 | . . 3 . 48 Impact . | . . . . . Slashing 50 | . . 2 . 48 Piercing . | . . . . . Sneak Attacks 3 | . . . . 3 Combat Hostiles . | . . . . . Follow-up Attacks 4 | . . . . 4 Damage Inflicted 8012 | . 714 1727 95 5476 Guns 4898 | . 700 1393 95 2710 Cannons 1008 | . . . . 1008 Explosions 786 | . . 304 . 482 Melee 1299 | . . 30 . 1269 Ramming 21 | . 14 . . 7 Kinetic 5697 | . 700 1393 95 3509 Thermal . | . . . . . Explosive 786 | . . 304 . 482 Electromagnetic 209 | . . . . 209 Impact . | . . . . . Slashing 1299 | . . 30 . 1269 Piercing . | . . . . . Highest Corruption 2 | . 2 . . . Average Corruption 2 | . 2 . . . Corruption Purged . | . . . . . Corruption Blocked . | . . . . . Effects 21 | . 21 . . . Message Errors 6 | . 6 . . . Matter Fused 5 | . 5 . . . Energy Discharges 3 | . 3 . . . Parts Fused 1 | . 1 . . . Data Loss (minor) 2 | . 2 . . . Data Loss (major) 1 | . 1 . . . Misfires 1 | . 1 . . . Alerts 2 | . 2 . . . Overload Shots . | . . . . . Overflow Damage 107 | . . . . 107 Projectiles . | . . . . . Explosions . | . . . . . Melee 107 | . . . . 107 Knockbacks 24 | . . . . 24 Impact . | . . . . . Kinetic 22 | . . . . 22 Secondary 2 | . . . . 2 Self-Inflicted Damage 37 | . . 15 . 22 Shots 2 | . . 1 . 1 Rammed 2 | . . . . 2 Targets Rammed 3 | . 1 . . 2 Kicked 1 | . 1 . . . Crushed . | . . . . . Highest Temperature 348 | . 27 33 . 348 Average Temperature 59 | . 8 10 . 76 Received Heat Transfer 2053 | . 264 564 . 1225 Effects 3 | . . . . 3 Energy Bleed 2 | . . . . 2 Interference 1 | . . . . 1 Siege Activations . | . . . . . Robots Corrupted . | . . . . . Combat Hostiles . | . . . . . Parts Fried . | . . . . . Impact Corruptions . | . . . . . Robots Melted . | . . . . . Combat Hostiles . | . . . . . Parts Melted . | . . . . . Heat Transferred . | . . . . . Parts Sabotaged . | . . . . . Parts Stolen . | . . . . . Parts Stripped . | . . . . . Power Chain Reactions . | . . . . . Alert | -11 -10 -9 -9 -8 ------- Run | Yrd Mat Mat Min Mat Peak Influence 822 | . 321 520 149 822 Initial 144 | . . . 144 . Average 270 | . 92 324 36 410 Maximum Alert Level 3 | . 1 2 . 3 Low Security (%) 54 | 100 81 24 100 33 Level 1 11 | . 18 27 . 11 Level 2 22 | . . 48 . 35 Level 3 10 | . . . . 19 Level 4 . | . . . . . Level 5 . | . . . . . High Security . | . . . . . Max Security . | . . . . . Squads Dispatched 17 | . 4 2 . 11 Investigation 6 | . 2 . . 4 Extermination . | . . . . . Reinforcement 9 | . 2 2 . 5 Assault 2 | . . . . 2 Garrison . | . . . . . Intercept . | . . . . . Searches Triggered . | . . . . . Construction Impeded . | . . . . . Haulers Reinforced . | . . . . . Active Scanning Responses . | . . . . . Cargo Convoy Interrupts . | . . . . . Stealth | -11 -10 -9 -9 -8 --------- Run | Yrd Mat Mat Min Mat Distress Signals 3 | . . . . 3 Communications Jammed . | . . . . . Distress Signals . | . . . . . Times Spotted 150 | . 23 38 . 89 Peak Tracking Total 6 | . 5 6 . 5 Tactical Retreats 15 | . . 4 . 11 Traps | -11 -10 -9 -9 -8 ------- Run | Yrd Mat Mat Min Mat Traps Triggered 7 | . 6 . . 1 Indirectly . | . . . . . Trap Hack Attempts . | . . . . . Triggered . | . . . . . Disarmed . | . . . . . Reprogrammed 6 | . . . . 6 Reused 2 | . . . . 2 Traps Extracted . | . . . . . Installed . | . . . . . Triggered 2 | . . . . 2 Machines | -11 -10 -9 -9 -8 ---------- Run | Yrd Mat Mat Min Mat Machines Disabled 6 | . . . . 6 Max in Single Turn 1 | . . . . 1 Machines Repaired . | . . . . . Machines Dismantled . | . . . . . Machines Sabotaged . | . . . . . Overloaded Fab Kills . | . . . . . Hacking | -11 -10 -9 -9 -8 --------- Run | Yrd Mat Mat Min Mat Machines Accessed 15 | . 4 4 . 7 Terminals 11 | . 4 2 . 5 Fabricators . | . . . . . Repair Stations 3 | . . 2 . 1 Recycling Units . | . . . . . Scanalyzers 1 | . . . . 1 Garrison Access . | . . . . . Total Hacks 46 | . 6 11 . 29 Successful 25 | . 3 8 . 14 Failed 21 | . 3 3 . 15 Catastrophic 1 | . 1 . . . Database Lockouts . | . . . . . Manual 1 | . . . . 1 Terminals 30 | . 6 4 . 20 Fabricators . | . . . . . Repair Stations 12 | . . 7 . 5 Recycling Units . | . . . . . Scanalyzers 4 | . . . . 4 Garrison Access . | . . . . . Terminal Hacks 17 | . 3 4 . 10 Robot Analysis 1 | . 1 . . . Emergency Access Points 2 | . . 1 . 1 Alert Level 1 | . . . . 1 Unreport Threat 2 | . . . . 2 Locate Traps 2 | . . . . 2 Reprogram Traps 1 | . . . . 1 Reinforcement Status 1 | . . . . 1 Assault Status 1 | . . 1 . . Recall Investigation 1 | . 1 . . . Recall Reinforcements 1 | . . . . 1 Registered Prototypes 1 | . . . . 1 Zone Layout 3 | . 1 2 . . Fabricator Hacks . | . . . . . Repair Station Hacks 5 | . . 4 . 1 Scan Component 3 | . . 2 . 1 Repair 2 | . . 2 . . Recycling Unit Hacks . | . . . . . Scanalyzer 3 | . . . . 3 Insert Component 1 | . . . . 1 Analyze 2 | . . . . 2 Garrison Access Hacks . | . . . . . Unauthorized Hacks . | . . . . . Terminals . | . . . . . Fabricators . | . . . . . Repair Stations . | . . . . . Recycling Units . | . . . . . Scanalyzers . | . . . . . Garrison Access . | . . . . . Data Cores Recovered . | . . . . . Used . | . . . . . Hacking Detections 10 | . 2 2 . 6 Full Trace Events 3 | . . . . 3 Feedback Events . | . . . . . Feedback Blocked . | . . . . . Robot Schematics Acquired . | . . . . . Robots Built . | . . . . . Authchips . | . . . . . Time . | . . . . . Total Robot Build Rating . | . . . . . Part Schematics Acquired 1 | . . . . 1 Parts Built . | . . . . . Authchips . | . . . . . Time . | . . . . . Total Part Build Rating . | . . . . . Parts Repaired 2 | . . 2 . . Time 64 | . . 64 . . Parts Recycled . | . . . . . Recycled Matter . | . . . . . Retrieved Matter . | . . . . . Retrieved Components . | . . . . . Parts Scanalyzed 1 | . . . . 1 Part Schematics Acquired 1 | . . . . 1 Parts Damaged . | . . . . . Bothacking | -11 -10 -9 -9 -8 ------------ Run | Yrd Mat Mat Min Mat Used RIF Installer . | . . . . . Robots Hacked 1 | . . 1 . . Non-combat . | . . . . . Combat 1 | . . 1 . . Robot Hacks Applied 1 | . . 1 . . parse_system 1 | . . 1 . . Relay Couplers Released . | . . . . . Fabnet Peak Effective % . | . . . . . Robots Rewired . | . . . . . Allies Hacked . | . . . . . Hacks Repelled . | . . . . . Allies | -11 -10 -9 -9 -8 -------- Run | Yrd Mat Mat Min Mat Total Allies 3 | . . . 3 . Largest Group 3 | . . . 3 3 Highest-Rated Group 40 | . . . 40 40 Highest-Rated Ally 16 | . . . 16 16 Total Orders . | . . . . . Ally Attacks 38 | . . . . 38 Total Damage 418 | . . . . 418 Kills 3 | . . . . 3 Allies Corrupted . | . . . . . Allies Melted . | . . . . . Intel | -11 -10 -9 -9 -8 ------- Run | Yrd Mat Mat Min Mat Robot Analysis Total 1 | . 1 . . . Derelict Logs Recovered 1 | . . . 1 . Drone Launches . | . . . . . Drone Recoveries . | . . . . . Exploration | -11 -10 -9 -9 -8 ------------- Run | Yrd Mat Mat Min Mat Turns Passed 8810 | 66 1665 802 1628 4649 Spaces Moved 3436 | 38 1058 357 502 1481 Core 18 | 17 . . . 1 Treads 955 | 14 . 41 502 398 Legs 1119 | 7 229 . . 883 Wheels 1344 | . 829 316 . 199 Hover . | . . . . . Flight . | . . . . . Fastest Speed 50 | 50 120 115 320 125 Average Speed 209 | 128 128 140 320 248 Slowest Speed 1650 | 200 175 320 320 1650 Overloaded Moves . | . . . . . Propulsion Burnouts . | . . . . . Robots Hopped . | . . . . . Cave-ins Triggered . | . . . . . Exploration Rate (%) 63 | 4 98 46 98 72 Regions Visited 4 Branch Regions 1 Pre-discovered Areas . | . . . . . Known Exits Taken . | . . . . . Unknown Exits Taken 4 | 1 1 1 1 . Scrap Searched 4 | . . . 4 . Spaces Dug . | . . . . . Terrain Destroyed 76 | . 10 12 . 54 Melee . | . . . . . Projectile . | . . . . . AOE 76 | . 10 12 . 54 Terrain Rammed . | . . . . . Walls Destroyed . | . . . . . Machines Disabled . | . . . . . Actions | -11 -10 -9 -9 -8 --------- Run | Yrd Mat Mat Min Mat Total 4483 | 52 1257 550 516 2108 Wait 454 | . 99 77 . 278 Move 3432 | 37 1057 356 501 1481 Hop . | . . . . . Pick Up 103 | 8 26 9 7 53 Fast Attach 13 | 4 1 4 . 4 Attach 46 | 2 5 8 . 31 Detach . | . . . . . Swap 49 | 1 8 11 . 29 Drop 51 | . 3 12 2 34 Fire 287 | . 57 70 6 154 Melee 45 | . . 3 . 42 Ram . | . . . . . Kick 1 | . 1 . . . Crush 2 | . . . . 2 Escape Stasis . | . . . . . Rewire . | . . . . . Trap . | . . . . . Miscellaneous . | . . . . . Route ------- -11/Scrapyard -10/Materials (discovered 5 exits: *Mat x3 / [*Min] / [*Sub]) -9/Materials (discovered 4 exits: *Mat / [*Min x2] / [*Sto]) -9/Mines (discovered 2 exits: *Mat x2) -8/Materials (discovered 2 exits: *Fac x2) History --------- Turn | Location | Event 11 | -11/Scrapyard | Discovered new exit (range 16) 67 | -11/Scrapyard | Entered Materials 213 | -10/Materials | Discovered new exit (range 16) 216 | -10/Materials | Discovered new exit (range 15) 297 | -10/Materials | Discovered new exit (range 5) 310 | -10/Materials | Build established: Mutant 416 | -10/Materials | Discovered new exit (range 8) 1239 | -10/Materials | Discovered new exit (range 6) 1732 | -10/Materials | Entered another Materials area 1732 | -9/Materials | Evolved 2 slots: Propulsion x1, Utility x1 1774 | -9/Materials | Discovered new exit (range 10) 1888 | -9/Materials | Repaired Com. Wheel 1913 | -9/Materials | Discovered new exit (range 8) 2167 | -9/Materials | Repaired Minigun 2191 | -9/Materials | Discovered new exit (range 6) 2336 | -9/Materials | Core integrity fell below 50% 2350 | -9/Materials | Core integrity fell below 20% 2378 | -9/Materials | Lost 6 parts (1p4n1w) 2509 | -9/Materials | Discovered new exit (range 8) 2534 | -9/Materials | Entered Mines 2732 | -9/Mines | Discovered new exit (range 8) 3124 | -9/Mines | Learned location of 1 exit from Materials 3156 | -9/Mines | Assisted by bots powering up and referring to "LRC-V3" 3220 | -9/Mines | Discovered new exit (range 8) 4162 | -9/Mines | Entered Materials 4162 | -8/Materials | Accompanied by 3 allies 4162 | -8/Materials | Evolved 2 slots: Power x1, Utility x1 4163 | -8/Materials | Identified exit to Factory 5043 | -8/Materials | Lost 3 parts (1p1u1w) 5052 | -8/Materials | Build established: Scavenger-Mutant 5524 | -8/Materials | Lost 4 parts (1p2n1u) 5823 | -8/Materials | Lost 5 parts (2p2n1u) 6122 | -8/Materials | Build established: Mutant 6363 | -8/Materials | Core integrity fell below 50% 7295 | -8/Materials | Discovered exit to Factory (range 13) 7762 | -8/Materials | First assault squad dispatched 7977 | -8/Materials | Core integrity fell below 20% 8009 | -8/Materials | Lost 3 parts (1p2n) 8811 | -8/Materials | Destroyed by Y-45 Defender with Beam Rifle Last Messages --------------- K-01 Serf collects debris. R-06 Scavenger collects Particle Gun. Lgt. Deuterium Engine destroyed. K-01 Serf collects debris. R-06 Scavenger collects Aluminum Leg. S-10 Pest destroyed. K-01 Serf collects debris. S-10 Pest destroyed. K-01 Serf collects debris. S-10 Pest destroyed. K-01 Serf collects debris. Connecting with Repair Station... >>Scan(Minigun) Scanning Minigun... Ready to Repair: Minigun Rating: 3 Time: 19 ALERT: Suspicious activity at Repair Station M001. Dispatching Investigation squad. Map ----- +----------------------------------------------------+ | ??????????????????????????????????????????????? | | ??????????????????????????????????????????????? | | ??????????????????????????????????????????????? | | ??????????????????????????????????????????????? | | ??????????????????????????????????????????????? | | ??????????????????????????????????????????????? | | ??????????????????????????????????????????????# | | ??????????????????????????????????????????????# | | ??????????????????????????????????????????????# | | ??????????????????????????????????????????????# | | ?????????????????????????+????????????????????# | | ????????????????????????? ????????????????????# | | ???????????????????????? ????????????????????# | | ???????????????????????? ?????????????????#### | | ???????????????????????? ????????????????##! | | ???????????????????????? ????????????????#! | | ????????????????????????# #???????????????#! | | ????????????????????????# #???????????????#! | | ????????????????????????# #???????????????#! | | ??????????????########### #????????????????#! | | ??????????????# # #??????????????????## | | ??????????????# "" # #################### | | ??????????????#[ = """ # | | ??????????????# R" + [%=* % | | ??????????????# """ """ # % %%=[%= %% | | ??????????????# """ @Y### ##############/### | | ??????????????# """ #?# #?????????# * % ## | | ??????????????# ! #?# #?????????# =%! # | | ??????????????###########?# #?????????# # | | ??????????????????????????# #?????????# !! # | | ??????????????????????????# #?????????#!=! # | | ??????????????????????????# #?????????# !! # | | ??????????????????????????# #?????????######## | | ??????????????????????????# +????????????????# | | ??????????????????????????? #????????????????# | | ??????????????????????????? ?????????????????# | | ??????????????????????????? ?????????????????# | | ??????????????????????????? ?????????????????# | | ??????????????????????????? ?????????????????# | | ??????????????????????????? ?????????????????# | | ??????????????????????????? ?????????????????## | | ??????????????????????????????????????????????? | | ??????????????????????????????????????????????? | | ??????????????????????????????????????????????# | | ???????????????????????????????????############ | | ???????????????????????????????????# """T""" ## | | ???????????????????????????????????# ## | | ???????????????????????????????????# """ ## | | ???????????????????????????????????# """"## | | ???????????????????????????????????# ! """""## | +----------------------------------------------------+ Best States ------------- Heat Dissipation 31 Energy Generation 23 Energy Capacity 450 Matter Stores 300 Matter Capacity 300 Sight Range 16 Terrain Scan Density 10 Armor Coverage 225 Weapon Shielding 33 Evasion (%) 55 Targeting Accuracy 6 Melee Accuracy 5 Recoil Reduction 3 Offensive Hacking 10 Item Schematics ----------------- Hvy. Particle Gun | -8/Materials | Scanalyzed Robot Schematics ------------------ None Fabricated ------------ Nothing Alien Tech Used ----------------- None Achievements -------------- None Challenges ------------ None Game ------ Seed SurgeGuidanceMagmablaster Manual? 0 Play Time 01:14:05 Cumulative 20.1 hours Start 2024.04.18 @ 06:38:33 End 2024.04.18 @ 07:50:35 Sessions 1 Manual Loads 0 Difficulty Rogue Special Mode None Game No. 22 Rogue 22 Adventurer 0 Explorer 0 Win Type - Total 0 Types 0/0/0/0/0/0/0/0/0 Lore% 15 Gallery% 20 Achievement% 100 Wizard Run 0 Options --------- Layout 1 ASCII 0 Keyboard 0 Movement Mouse Keybinds 0 Fullscreen 1 Font 24/Smallcaps Map View 50x35 Zoom Use 0% Tactical HUD 0 Map Filters NONE Filters NONE Steam 1 RUN: 45652b33-5e89-4301-9a93-432bd5c43c71